fUST/lending_fUST_20250204
["ID","MTS","AMOUNT","RATE_DAILY","PERIOD"]
[351600278,1738655440270,-1190.69,0.00016849,2]
[351600279,1738655440283,-717.4,0.00016849,2]
[351600280,1738655440293,-500.0,0.00016849,2]
[351600281,1738655440303,-18530.96,0.00016849,2]
[351600282,1738655440314,-903.98,0.00016849,2]
[351600283,1738655440324,-1038.29,0.00016849,2]
[351600284,1738655440333,-1880.67,0.00016849,2]
[351600285,1738655440343,-500.0,0.00016849,2]
[351600286,1738655440353,-7784.01,0.00016849,2]
[351600287,1738655440364,-500.0,0.00016849,2]
[351600288,1738655440373,-2998.09,0.00016849,2]
[351600289,1738655440383,-603.51,0.00016849,2]
[351600290,1738655440393,-500.0,0.00016849,2]
[351600291,1738655440403,-1102.68,0.00016849,2]
[351600292,1738655440412,-622.95692336,0.00016849,2]
[351600293,1738655440421,-592.82,0.00016849,2]
[351600294,1738655440430,-559.49,0.00016849,2]
[351600295,1738655440442,-500.0,0.00016849,2]
[351600296,1738655440452,-500.0,0.00016849,2]
[351600297,1738655440461,-858.97,0.00016849,2]
[351600298,1738655440471,-500.0,0.00016849,2]
[351600299,1738655440480,-1238.34,0.00016849,2]
[351600300,1738655440490,-500.0,0.00016849,2]
[351600301,1738655440499,-1208.11,0.00016849,2]
[351600302,1738655440508,-2215.72,0.00016849,2]
[351600303,1738655440517,-500.0,0.00016849,2]
[351600304,1738655440529,-500.0,0.00016849,2]
[351600305,1738655440538,-500.0,0.00016849,2]
[351600307,1738655440548,-1833.67,0.00016849,2]
[351600309,1738655440557,-1000.05,0.00016849,2]
[351600310,1738655440567,-507.8949998,0.00016849,2]
[351600311,1738655440576,-1155.27,0.00016849,2]
[351600312,1738655440586,-500.0,0.00016849,2]
[351600313,1738655440595,-1053.58,0.00016849,2]
[351600314,1738655440605,-500.0,0.00016849,2]
[351600315,1738655440615,-824.21,0.00016849,2]
[351600316,1738655440625,-5712.47,0.00016849,2]
[351600317,1738655440634,-876.93,0.00016849,2]
[351600318,1738655440643,-500.0,0.00016849,2]
[351600319,1738655440652,-500.0,0.00016849,2]
[351600320,1738655440662,-500.0,0.00016849,2]
[351600321,1738655440673,-155.695529,0.00016877,2]
[351600322,1738655440683,-2547.95,0.000169,2]
[351600323,1738655440693,-420.0,0.00016966,2]
[351600324,1738655440703,-5356.94,0.00016985,2]
[351600325,1738655440713,-500.0,0.00016985,2]
[351600326,1738655440722,-500.0,0.00016986,2]
[351600327,1738655440732,-500.0,0.00016986,2]
[351600328,1738655440742,-500.0,0.00016986,2]
[351600329,1738655440751,-500.0,0.00016986,2]
[351600330,1738655440760,-721.77,0.00016986,2]
[351600331,1738655440770,-696.27,0.00016986,2]
[351600332,1738655440782,-580.25,0.00016986,2]
[351600333,1738655440792,-500.0,0.00016986,2]
[351600334,1738655440801,-500.0,0.00016986,2]
[351600335,1738655440811,-664.28,0.00016986,2]
[351600336,1738655440821,-1742.02,0.00016986,2]
[351600337,1738655440831,-500.0,0.00016986,2]
[351600338,1738655440840,-500.0,0.00016986,2]
[351600339,1738655440850,-500.0,0.00016986,2]
[351600340,1738655440860,-500.0,0.00016986,2]
[351600341,1738655440870,-500.0,0.00016986,2]
[351600342,1738655440879,-2590.64,0.00016986,2]
[351600343,1738655440889,-1974.47,0.00016986,2]
[351600344,1738655440899,-1167.38,0.00016986,2]
[351600345,1738655440908,-500.0,0.00016986,2]
[351600346,1738655440918,-840.72,0.00016986,2]
[351600347,1738655440927,-392.41566436,0.00016986,2]
[351600348,1738655440937,-1516.24,0.00016986,2]
[351600349,1738655440947,-4318.45,0.00016986,2]
[351600350,1738655440956,-656.55,0.00016986,2]
[351600351,1738655440966,-500.0,0.00016986,2]
[351600352,1738655440976,-729.46,0.00016986,2]
[351600353,1738655440985,-1190.69,0.00016986,2]
[351600354,1738655440995,-717.4,0.00016986,2]
[351600355,1738655441005,-500.0,0.00016986,2]
[351600356,1738655441014,-18530.96,0.00016986,2]
[351600357,1738655441026,-903.98,0.00016986,2]
[351600358,1738655441035,-1038.29,0.00016986,2]
[351600359,1738655441044,-1880.67,0.00016986,2]
[351600360,1738655441054,-500.0,0.00016986,2]
[351600361,1738655441063,-7784.01,0.00016986,2]
[351600362,1738655441073,-162.41170645,0.00016986,2]
[351600363,1738655441082,-2998.09,0.00016986,2]
[351600364,1738655441092,-603.51,0.00016986,2]
[351600365,1738655441101,-500.0,0.00016986,2]
[351600366,1738655441111,-1102.68,0.00016986,2]
[351600367,1738655441120,-592.82,0.00016986,2]
[351600368,1738655441130,-559.49,0.00016986,2]
[351600369,1738655441140,-500.0,0.00016986,2]
[351600370,1738655441149,-500.0,0.00016986,2]
[351600371,1738655441159,-858.97,0.00016986,2]
[351600372,1738655441168,-500.0,0.00016986,2]
[351600373,1738655441179,-1238.34,0.00016986,2]
[351600374,1738655441189,-500.0,0.00016986,2]
[351600375,1738655441199,-1208.11,0.00016986,2]
[351600376,1738655441208,-2215.72,0.00016986,2]
[351600377,1738655441217,-500.0,0.00016986,2]
[351600378,1738655441227,-500.0,0.00016986,2]
[351600379,1738655441237,-500.0,0.00016986,2]
[351600380,1738655441246,-1833.67,0.00016986,2]
[351600381,1738655441256,-1000.05,0.00016986,2]
[351600382,1738655441265,-1155.27,0.00016986,2]
[351600383,1738655441277,-500.0,0.00016986,2]
[351600384,1738655441287,-1053.58,0.00016986,2]
[351600385,1738655441297,-500.0,0.00016986,2]
[351600386,1738655441307,-824.21,0.00016986,2]
[351600387,1738655441317,-5712.47,0.00016986,2]
[351600388,1738655441327,-876.93,0.00016986,2]
[351600389,1738655441336,-500.0,0.00016986,2]
[351600390,1738655441347,-284.48,0.00016986,2]
[351600391,1738655441358,-500.0,0.00016986,2]
[351600392,1738655441367,-800.0,0.00016986,2]
[351600393,1738655441377,-597.6874352,0.00016992,2]
[351600394,1738655441387,-500.0,0.00016999,2]
[351600395,1738655441396,-500.0,0.00016999,2]
[351600396,1738655441405,-500.0,0.00016999,2]
[351600397,1738655441414,-500.0,0.00016999,2]
[351600398,1738655441423,-341.26009003,0.00016999,2]
[351600399,1738655441433,-21289.0,0.00017,2]
[351600400,1738655441443,-1000.0,0.00017,17]
[351600401,1738655441452,-1000.0,0.00017,3]
[351600402,1738655441462,-153.55854776,0.00017014,2]
[351600403,1738655441471,-153.55854776,0.00017014,2]
[351600404,1738655441480,-151.0,0.00017076,2]
[351600405,1738655441489,-1200.0,0.00017076,2]
[351600406,1738655441499,-668.153,0.00017076,2]
[351600407,1738655441508,-5356.94,0.00017122,2]
[351600408,1738655441518,-500.0,0.00017122,2]
[351600409,1738655441529,-500.0,0.00017123,2]
[351600410,1738655441538,-500.0,0.00017123,2]
[351600411,1738655441547,-500.0,0.00017123,2]
[351600412,1738655441556,-500.0,0.00017123,2]
[351600413,1738655441565,-721.77,0.00017123,2]
[351600414,1738655441574,-696.27,0.00017123,2]
[351600415,1738655441584,-580.25,0.00017123,2]
[351600416,1738655441594,-500.0,0.00017123,2]
[351600417,1738655441604,-500.0,0.00017123,2]
[351600418,1738655441614,-664.28,0.00017123,2]
[351600419,1738655441623,-1742.02,0.00017123,2]
[351600420,1738655441633,-500.0,0.00017123,2]
[351600421,1738655441643,-500.0,0.00017123,2]
[351600422,1738655441652,-500.0,0.00017123,2]
[351600423,1738655441662,-500.0,0.00017123,2]
[351600424,1738655441672,-186.5053653,0.00017123,2]
[351600425,1738655441783,-2590.64,0.00017123,2]
[351600426,1738655441793,-1974.47,0.00017123,2]
[351600427,1738655441803,-1167.38,0.00017123,2]
[351600428,1738655441812,-500.0,0.00017123,2]
[351600429,1738655441822,-840.72,0.00017123,2]
[351600430,1738655441831,-1516.24,0.00017123,2]
[351600431,1738655441841,-4318.45,0.00017123,2]
[351600432,1738655441851,-656.55,0.00017123,2]
[351600433,1738655441860,-500.0,0.00017123,2]
[351600434,1738655441870,-729.46,0.00017123,2]
[351600435,1738655441880,-1190.69,0.00017123,2]
[351600436,1738655441890,-717.4,0.00017123,2]
[351600437,1738655441899,-500.0,0.00017123,2]
[351600438,1738655441909,-18530.96,0.00017123,2]
[351600439,1738655441918,-903.98,0.00017123,2]
[351600440,1738655441928,-1038.29,0.00017123,2]
[351600441,1738655441938,-1880.67,0.00017123,2]
[351600442,1738655441947,-500.0,0.00017123,2]
[351600443,1738655441957,-7784.01,0.00017123,2]
[351600444,1738655441966,-2998.09,0.00017123,2]
[351600445,1738655441975,-603.51,0.00017123,2]
[351600446,1738655441985,-500.0,0.00017123,2]
[351600447,1738655441995,-1102.68,0.00017123,2]
[351600448,1738655442004,-592.82,0.00017123,2]
[351600449,1738655442014,-559.49,0.00017123,2]
[351600450,1738655442023,-593.9132324,0.00017123,2]
[351600451,1738655442034,-500.0,0.00017123,2]
[351600452,1738655442044,-858.97,0.00017123,2]
[351600453,1738655442053,-500.0,0.00017123,2]
[351600454,1738655442062,-1238.34,0.00017123,2]
[351600455,1738655442071,-500.0,0.00017123,2]
[351600456,1738655442080,-1208.11,0.00017123,2]
[351600457,1738655442089,-2215.72,0.00017123,2]
[351600458,1738655442098,-340.85335333,0.00017123,2]
[351600459,1738655442107,-500.0,0.00017123,2]
[351600460,1738655442116,-500.0,0.00017123,2]
[351600461,1738655442125,-1833.67,0.00017123,2]
[351600462,1738655442134,-1000.05,0.00017123,2]
[351600463,1738655442143,-1155.27,0.00017123,2]
[351600464,1738655442152,-500.0,0.00017123,2]
[351600465,1738655442161,-1053.58,0.00017123,2]
[351600466,1738655442171,-500.0,0.00017123,2]
[351600467,1738655442180,-824.21,0.00017123,2]
[351600468,1738655442189,-5712.47,0.00017123,2]
[351600469,1738655442200,-876.93,0.00017123,2]
[351600470,1738655442209,-500.0,0.00017123,2]
[351600471,1738655442221,-500.0,0.00017171,2]
[351600472,1738655442231,-258.3660881,0.00017189,2]
[351600473,1738655442240,-8267.07867954,0.000172,7]
[351600474,1738655442250,-162.0,0.00017236,2]
[351600475,1738655442260,-162.0,0.00017236,2]
[351600476,1738655442270,-162.0,0.00017236,2]
[351600477,1738655442279,-162.0,0.00017236,2]
[351600478,1738655442289,-166.94,0.00017236,2]
[351600479,1738655442299,-5356.94,0.00017259,2]
[351600480,1738655442308,-500.0,0.00017259,2]
[351600481,1738655442317,-500.0,0.0001726,2]
[351600482,1738655442327,-500.0,0.0001726,2]
[351600483,1738655442337,-223.82304717,0.0001726,2]
[351600484,1738655442347,-500.0,0.0001726,2]
[351600485,1738655442356,-721.77,0.0001726,2]
[351600486,1738655442369,-696.27,0.0001726,2]
[351600487,1738655442379,-580.25,0.0001726,2]
[351600488,1738655442388,-514.86320597,0.0001726,2]
[351600489,1738655442398,-500.0,0.0001726,2]
[351600490,1738655442410,-664.28,0.0001726,2]
[351600491,1738655442420,-1742.02,0.0001726,2]
[351600492,1738655442429,-500.0,0.0001726,2]
[351600493,1738655442441,-500.0,0.0001726,2]
[351600494,1738655442450,-414.46,0.0001726,2]
[351600495,1738655442460,-500.0,0.0001726,2]
[351600496,1738655442469,-2590.64,0.0001726,2]
[351600497,1738655442478,-1974.47,0.0001726,2]
[351600498,1738655442487,-1167.38,0.0001726,2]
[351600499,1738655442496,-500.0,0.0001726,2]
[351600500,1738655442505,-840.72,0.0001726,2]
[351600501,1738655442515,-1516.24,0.0001726,2]
[351600502,1738655442524,-4318.45,0.0001726,2]
[351600503,1738655442533,-656.55,0.0001726,2]
[351600504,1738655442543,-558.80785315,0.0001726,2]
[351600505,1738655442552,-729.46,0.0001726,2]
[351600506,1738655442561,-1190.69,0.0001726,2]
[351600507,1738655442571,-717.4,0.0001726,2]
[351600508,1738655442580,-500.0,0.0001726,2]
[351600509,1738655442590,-18530.96,0.0001726,2]
[351600510,1738655442599,-903.98,0.0001726,2]
[351600511,1738655442608,-1038.29,0.0001726,2]
[351600512,1738655442617,-1880.67,0.0001726,2]
[351600513,1738655442627,-500.0,0.0001726,2]
[351600514,1738655442636,-7784.01,0.0001726,2]
[351600515,1738655442645,-2998.09,0.0001726,2]
[351600516,1738655442655,-603.51,0.0001726,2]
[351600517,1738655442664,-500.0,0.0001726,2]
[351600518,1738655442674,-1102.68,0.0001726,2]
[351600519,1738655442683,-592.82,0.0001726,2]
[351600520,1738655442692,-559.49,0.0001726,2]
[351600521,1738655442701,-500.0,0.0001726,2]
[351600522,1738655442710,-858.97,0.0001726,2]
[351600523,1738655442720,-1238.34,0.0001726,2]
[351600524,1738655442729,-1208.11,0.0001726,2]
[351600525,1738655442739,-2215.72,0.0001726,2]
[351600526,1738655442748,-500.0,0.0001726,2]
[351600527,1738655442757,-500.0,0.0001726,2]
[351600528,1738655442767,-1833.67,0.0001726,2]
[351600529,1738655442776,-1000.05,0.0001726,2]
[351600530,1738655442785,-1155.27,0.0001726,2]
[351600531,1738655442796,-500.0,0.0001726,2]
[351600532,1738655442805,-1053.58,0.0001726,2]
[351600533,1738655442815,-500.0,0.0001726,2]
[351600534,1738655442824,-824.21,0.0001726,2]
[351600535,1738655442834,-5712.47,0.0001726,2]
[351600536,1738655442844,-876.93,0.0001726,2]
[351600537,1738655442853,-554.724698,0.0001726,2]
[351600538,1738655442863,-1394.43365856,0.00017333,2]
[351600539,1738655442872,-5356.94,0.00017396,2]
[351600540,1738655442881,-500.0,0.00017396,2]
[351600541,1738655442891,-500.0,0.00017397,2]
[351600542,1738655442900,-500.0,0.00017397,2]
[351600543,1738655442910,-500.0,0.00017397,2]
[351600544,1738655442920,-721.77,0.00017397,2]
[351600545,1738655442930,-696.27,0.00017397,2]
[351600546,1738655442940,-580.25,0.00017397,2]
[351600547,1738655442950,-500.0,0.00017397,2]
[351600548,1738655442959,-664.28,0.00017397,2]
[351600549,1738655442968,-1742.02,0.00017397,2]
[351600550,1738655442979,-500.0,0.00017397,2]
[351600551,1738655442989,-500.0,0.00017397,2]
[351600552,1738655442999,-424.86869562,0.00017397,2]
[351600553,1738655443008,-2590.64,0.00017397,2]
[351600554,1738655443017,-1974.47,0.00017397,2]
[351600555,1738655443027,-1167.38,0.00017397,2]
[351600556,1738655443035,-500.0,0.00017397,2]
[351600557,1738655443045,-840.72,0.00017397,2]
[351600558,1738655443054,-1516.24,0.00017397,2]
[351600559,1738655443064,-619.62986198,0.00017397,2]
[351600560,1738655443081,-3698.82013802,0.00017397,2]
[351600561,1738655443090,-656.55,0.00017397,2]
[351600562,1738655443100,-729.46,0.00017397,2]
[351600563,1738655443110,-1190.69,0.00017397,2]
[351600564,1738655443119,-717.4,0.00017397,2]
[351600565,1738655443129,-500.0,0.00017397,2]
[351600566,1738655443139,-18530.96,0.00017397,2]
[351600567,1738655443149,-903.98,0.00017397,2]
[351600568,1738655443159,-1038.29,0.00017397,2]
[351600569,1738655443168,-1880.67,0.00017397,2]
[351600570,1738655443178,-500.0,0.00017397,2]
[351600571,1738655443187,-7784.01,0.00017397,2]
[351600572,1738655443196,-2998.09,0.00017397,2]
[351600573,1738655443205,-603.51,0.00017397,2]
[351600574,1738655443215,-500.0,0.00017397,2]
[351600575,1738655443224,-1102.68,0.00017397,2]
[351600576,1738655443233,-592.82,0.00017397,2]
[351600577,1738655443243,-559.49,0.00017397,2]
[351600578,1738655443252,-500.0,0.00017397,2]
[351600579,1738655443261,-858.97,0.00017397,2]
[351600580,1738655443271,-1238.34,0.00017397,2]
[351600581,1738655443280,-1208.11,0.00017397,2]
[351600582,1738655443289,-2215.72,0.00017397,2]
[351600583,1738655443298,-500.0,0.00017397,2]
[351600584,1738655443307,-500.0,0.00017397,2]
[351600585,1738655443318,-1833.67,0.00017397,2]
[351600586,1738655443327,-1000.05,0.00017397,2]
[351600587,1738655443336,-1155.27,0.00017397,2]
[351600588,1738655443347,-500.0,0.00017397,2]
[351600589,1738655443357,-1053.58,0.00017397,2]
[351600590,1738655443366,-500.0,0.00017397,2]
[351600591,1738655443376,-824.21,0.00017397,2]
[351600592,1738655443387,-5712.47,0.00017397,2]
[351600593,1738655443396,-876.93,0.00017397,2]
[351600594,1738655443406,-18734.95,0.000174,2]
[351600595,1738655443415,-151.0,0.000174,2]
[351600596,1738655443426,-2000.0,0.000175,2]
[351600597,1738655443435,-1024.0,0.000175,7]
[351600598,1738655443444,-5356.94,0.00017533,2]
[351600599,1738655443454,-500.0,0.00017533,2]
[351600600,1738655443463,-500.0,0.00017534,2]
[351600601,1738655443472,-500.0,0.00017534,2]
[351600602,1738655443481,-500.0,0.00017534,2]
[351600603,1738655443491,-721.77,0.00017534,2]
[351600604,1738655443500,-696.27,0.00017534,2]
[351600605,1738655443510,-580.25,0.00017534,2]
[351600606,1738655443520,-500.0,0.00017534,2]
[351600607,1738655443530,-664.28,0.00017534,2]
[351600608,1738655443539,-1742.02,0.00017534,2]
[351600609,1738655443548,-500.0,0.00017534,2]
[351600610,1738655443557,-500.0,0.00017534,2]
[351600611,1738655443567,-2590.64,0.00017534,2]
[351600612,1738655443576,-1974.47,0.00017534,2]
[351600613,1738655443586,-1167.38,0.00017534,2]
[351600614,1738655443595,-840.72,0.00017534,2]
[351600615,1738655443606,-1516.24,0.00017534,2]
[351600616,1738655443615,-4318.45,0.00017534,2]
[351600617,1738655443624,-656.55,0.00017534,2]
[351600618,1738655443635,-729.46,0.00017534,2]
[351600619,1738655443644,-1190.69,0.00017534,2]
[351600620,1738655443654,-717.4,0.00017534,2]
[351600621,1738655443664,-500.0,0.00017534,2]
[351600622,1738655443673,-8661.77807494,0.00017534,2]
[351600623,1738655443686,-9869.18192506,0.00017534,2]
[351600624,1738655443695,-903.98,0.00017534,2]
[351600625,1738655443704,-1038.29,0.00017534,2]
[351600626,1738655443714,-1880.67,0.00017534,2]
[351600627,1738655443723,-500.0,0.00017534,2]
[351600628,1738655443733,-7784.01,0.00017534,2]
[351600629,1738655443743,-2998.09,0.00017534,2]
[351600630,1738655443752,-603.51,0.00017534,2]
[351600631,1738655443761,-500.0,0.00017534,2]
[351600632,1738655443770,-1102.68,0.00017534,2]
[351600633,1738655443781,-592.82,0.00017534,2]
[351600634,1738655443791,-559.49,0.00017534,2]
[351600635,1738655443800,-858.97,0.00017534,2]
[351600636,1738655443810,-1238.34,0.00017534,2]
[351600637,1738655443820,-1208.11,0.00017534,2]
[351600638,1738655443830,-2215.72,0.00017534,2]
[351600639,1738655443841,-500.0,0.00017534,2]
[351600640,1738655443850,-500.0,0.00017534,2]
[351600641,1738655443860,-1833.67,0.00017534,2]
[351600642,1738655443869,-1000.05,0.00017534,2]
[351600643,1738655443879,-1155.27,0.00017534,2]
[351600644,1738655443890,-500.0,0.00017534,2]
[351600645,1738655443899,-1053.58,0.00017534,2]
[351600646,1738655443909,-500.0,0.00017534,2]
[351600647,1738655443918,-824.21,0.00017534,2]
[351600648,1738655443927,-5712.47,0.00017534,2]
[351600649,1738655443938,-876.93,0.00017534,2]
[351600650,1738655443947,-584.0,0.0001754,2]
[351600651,1738655443957,-258.3660881,0.00017545,2]
[351600652,1738655443966,-151.0,0.000176,2]
[351600653,1738655443975,-5251.85831653,0.0001767,2]
[351600654,1738655444074,-105.08168347,0.0001767,2]
[351600655,1738655444084,-407.77461211,0.0001767,2]
[351600667,1738655445304,-500.0,0.00016438,2]
[351600668,1738655445315,-500.0,0.00016438,2]
[351600669,1738655445329,-500.0,0.00016438,2]
[351600670,1738655445339,-353.61,0.00016575,2]
[351600671,1738655445349,-500.0,0.00016575,2]
[351600672,1738655445360,-500.0,0.00016575,2]
[351600673,1738655445370,-500.0,0.00016712,2]
[351600674,1738655445379,-508.44,0.00016712,2]
[351600675,1738655445389,-231.214,0.00016786,2]
[351600676,1738655445398,-229.1888865,0.00016849,2]
[351600709,1738655485109,700.0,0.00014246,2]
[351600710,1738655713787,591.9,0.00010959,2]
[351600711,1738655734564,210.99,0.00010959,2]
[351600712,1738655745053,175.83,0.00010959,2]
[351600714,1738655791507,202.323382,0.00013973,2]
[351600716,1738655909736,700.0,0.00014246,2]
[351600717,1738655981744,626.07,0.00010959,2]
[351600718,1738655992264,159.41,0.00010959,2]
[351600719,1738656002980,797.08,0.00010959,2]
[351600720,1738656013682,362.31,0.00010959,2]
[351600721,1738656024155,553.52,0.00010959,2]
[351600722,1738656044887,209.67,0.00010959,2]
[351600724,1738656055425,174.72,0.00010959,2]
[351600726,1738656096619,873.64,0.00010959,2]
[351600727,1738656118136,700.0,0.00014246,2]
[351600799,1738656632741,-272.34202497,0.000154,2]
[351600801,1738656632755,-27.65797503,0.000154,2]
[351600802,1738656632765,-458.83452497,0.00015401,2]
[351600803,1738656632777,-348.65598955,0.00015401,2]
[351600804,1738656632790,-543.41649168,0.00015401,2]
[351600805,1738656632802,-3827.86972896,0.00015401,2]
[351600806,1738656632813,-4469.05752656,0.00015401,2]
[351600807,1738656632826,-1869.03403965,0.00015401,2]
[351600808,1738656632843,-3620.72113976,0.00015401,2]
[351601039,1738656638336,-4570.37987732,0.00015401,2]
[351601041,1738656638348,-5192.03068155,0.00015401,2]
[351601043,1738656638358,-1988.0,0.00015516,2]
[351601045,1738656638368,-700.0,0.00015616,2]
[351601047,1738656638378,-29242.0,0.00016,2]
[351601049,1738656638387,-154.88844729,0.00016207,2]
[351601051,1738656638398,-151.243,0.00016307,2]
[351601052,1738656638408,-541.988,0.00016307,2]
[351601054,1738656638417,-1974.0,0.00016307,2]
[351601056,1738656638427,-193.325056,0.00016378,5]
[351601058,1738656638437,-3000.0,0.000164,2]
[351601060,1738656638453,-3000.0,0.0001641,2]
[351601063,1738656638474,-3000.0,0.0001642,2]
[351601065,1738656638485,-3000.0,0.0001643,2]
[351601066,1738656638495,-499.0,0.00016437,2]
[351601068,1738656638506,-500.0,0.00016438,2]
[351601070,1738656638516,-500.0,0.00016438,2]
[351601072,1738656638527,-500.0,0.00016438,2]
[351601074,1738656638537,-500.0,0.00016438,2]
[351601076,1738656638547,-500.0,0.00016438,2]
[351601078,1738656638558,-519.25564087,0.00016438,2]
[351601079,1738656638569,-500.0,0.00016438,2]
[351601081,1738656638580,-500.0,0.00016438,2]
[351601083,1738656638590,-500.0,0.00016438,2]
[351601085,1738656638601,-500.0,0.00016438,2]
[351601087,1738656638611,-500.0,0.00016438,2]
[351601089,1738656638621,-500.0,0.00016438,2]
[351601091,1738656638631,-500.0,0.00016438,2]
[351601093,1738656638641,-500.0,0.00016438,2]
[351601095,1738656638650,-500.0,0.00016438,2]
[351601096,1738656638660,-500.0,0.00016438,2]
[351601098,1738656638671,-500.0,0.00016438,2]
[351601100,1738656638682,-500.0,0.00016438,2]
[351601102,1738656638692,-500.0,0.00016438,2]
[351601104,1738656638701,-500.0,0.00016438,2]
[351601106,1738656638715,-580.12917351,0.00016438,2]
[351601108,1738656638724,-500.0,0.00016438,2]
[351601110,1738656638735,-500.0,0.00016438,2]
[351601112,1738656638748,-500.0,0.00016438,2]
[351601113,1738656638758,-500.0,0.00016438,2]
[351601115,1738656638767,-500.0,0.00016438,2]
[351601117,1738656638777,-500.0,0.00016438,2]
[351601119,1738656638789,-500.0,0.00016438,2]
[351601121,1738656638799,-507.28356888,0.00016438,2]
[351601123,1738656638809,-500.0,0.00016438,2]
[351601125,1738656638820,-500.0,0.00016438,2]
[351601127,1738656638830,-308.70379889,0.00016438,2]
[351601128,1738656638840,-417.62662071,0.00016438,2]
[351601130,1738656638850,-500.0,0.00016438,2]
[351601132,1738656638860,-479.0,0.00016438,2]
[351601134,1738656638869,-500.0,0.00016438,2]
[351601136,1738656638879,-500.0,0.00016438,2]
[351601138,1738656638889,-500.0,0.00016438,2]
[351601140,1738656638899,-500.0,0.00016438,2]
[351601142,1738656638909,-504.51334697,0.00016438,2]
[351601144,1738656638919,-500.0,0.00016438,2]
[351601145,1738656638929,-500.0,0.00016438,2]
[351601147,1738656638939,-504.47189125,0.00016438,2]
[351601149,1738656638948,-500.0,0.00016438,2]
[351601151,1738656638958,-500.0,0.00016438,2]
[351601153,1738656638969,-709.92,0.00016438,2]
[351601155,1738656638979,-501.56098355,0.00016438,2]
[351601157,1738656638989,-500.0,0.00016438,2]
[351601158,1738656638999,-500.0,0.00016438,2]
[351601160,1738656639009,-500.0,0.00016438,2]
[351601162,1738656639018,-500.0,0.00016438,2]
[351601164,1738656639028,-688.15,0.00016438,2]
[351601166,1738656639038,-500.0,0.00016438,2]
[351601168,1738656639048,-500.0,0.00016438,2]
[351601170,1738656639058,-500.0,0.00016438,2]
[351601172,1738656639068,-500.0,0.00016438,2]
[351601173,1738656639077,-500.0,0.00016438,2]
[351601175,1738656639087,-574.98,0.00016438,2]
[351601177,1738656639097,-500.0,0.00016438,2]
[351601179,1738656639108,-500.0,0.00016438,2]
[351601181,1738656639117,-500.0,0.00016438,2]
[351601183,1738656639127,-500.0,0.00016438,2]
[351601185,1738656639137,-500.0,0.00016438,2]
[351601186,1738656639149,-500.0,0.00016438,2]
[351601188,1738656639159,-154.07922469,0.00016438,2]
[351601190,1738656639169,-500.0,0.00016438,2]
[351601192,1738656639179,-500.0,0.00016438,2]
[351601194,1738656639189,-500.0,0.00016438,2]
[351601196,1738656639198,-1000.0,0.00016438,2]
[351601197,1738656639208,-500.0,0.00016438,2]
[351601199,1738656639219,-500.0,0.00016438,2]
[351601201,1738656639229,-500.0,0.00016438,2]
[351601203,1738656639238,-500.0,0.00016438,2]
[351601205,1738656639248,-500.0,0.00016438,2]
[351601207,1738656639258,-442.85136452,0.00016438,2]